fUST/lending_fUST_20240131
["ID","MTS","AMOUNT","RATE_DAILY","PERIOD"]
[313041633,1706679040660,-606.6,0.00027397,2]
[313041634,1706679040670,-500.0,0.00027397,2]
[313041635,1706679040679,-1469.84,0.00027397,2]
[313041636,1706679040688,-330.30315259,0.00027397,2]
[313041637,1706679040698,-363.58117365,0.00027397,2]
[313041638,1706679040707,-511.86998028,0.00027397,2]
[313041639,1706679040716,-541.55455863,0.00027397,2]
[313041640,1706679040725,-352.27375048,0.00027397,2]
[313041641,1706679040734,-518.82678093,0.00027397,2]
[313041642,1706679040743,-500.0,0.00027397,2]
[313041643,1706679040753,-500.0,0.00027397,2]
[313041644,1706679040762,-500.0,0.00027397,2]
[313041645,1706679040771,-256.84012446,0.00027397,2]
[313041646,1706679040781,-500.0,0.00027397,2]
[313041647,1706679040790,-793.97,0.00027397,2]
[313041648,1706679040799,-500.0,0.00027397,2]
[313041649,1706679040808,-500.0,0.00027397,2]
[313041650,1706679040817,-307.69575709,0.00027397,2]
[313041651,1706679040826,-500.0,0.00027397,2]
[313041652,1706679040835,-508.39626117,0.00027397,2]
[313041653,1706679040845,-500.0,0.00027397,2]
[313041654,1706679040854,-500.0,0.00027397,2]
[313041655,1706679040863,-500.0,0.00027397,2]
[313041656,1706679040872,-500.0,0.00027397,2]
[313041657,1706679040882,-500.0,0.00027397,2]
[313041658,1706679040892,-504.47465679,0.00027397,2]
[313041659,1706679040901,-878.61,0.00027397,2]
[313041660,1706679040910,-878.61,0.00027397,2]
[313041661,1706679040919,-878.61,0.00027397,2]
[313041662,1706679040928,-878.61,0.00027397,2]
[313041663,1706679040937,-878.61,0.00027397,2]
[313041664,1706679040946,-878.61,0.00027397,2]
[313041665,1706679040955,-878.61,0.00027397,2]
[313041666,1706679040965,-878.61,0.00027397,2]
[313041667,1706679040974,-878.61,0.00027397,2]
[313041669,1706679040984,-878.61,0.00027397,2]
[313041670,1706679040993,-878.61,0.00027397,2]
[313041671,1706679041002,-648.66221792,0.00027397,2]
[313041672,1706679041012,-812.061913,0.00027397,2]
[313041673,1706679041097,-812.061913,0.00027397,2]
[313041674,1706679041107,-812.061913,0.00027397,2]
[313041675,1706679041116,-812.061913,0.00027397,2]
[313041676,1706679041125,-500.0,0.00027397,2]
[313041677,1706679041135,-812.061913,0.00027397,2]
[313041678,1706679041145,-500.0,0.00027397,2]
[313041679,1706679041154,-812.061913,0.00027397,2]
[313041680,1706679041164,-812.061913,0.00027397,2]
[313041681,1706679041173,-812.061913,0.00027397,2]
[313041682,1706679041182,-812.061913,0.00027397,2]
[313041683,1706679041191,-812.061913,0.00027397,2]
[313041684,1706679041201,-812.061913,0.00027397,2]
[313041685,1706679041210,-812.061913,0.00027397,2]
[313041686,1706679041219,-812.061913,0.00027397,2]
[313041687,1706679041228,-812.061913,0.00027397,2]
[313041688,1706679041238,-812.061913,0.00027397,2]
[313041690,1706679041251,-812.061913,0.00027397,2]
[313041691,1706679041260,-988.17,0.00027397,2]
[313041692,1706679041270,-500.0,0.00027397,2]
[313041693,1706679041280,-500.0,0.00027397,2]
[313041694,1706679041290,-4896.25,0.00027397,2]
[313041695,1706679041299,-500.0,0.00027397,2]
[313041696,1706679041308,-2709.66,0.00027397,2]
[313041697,1706679041317,-500.0,0.00027397,2]
[313041698,1706679041327,-500.0,0.00027397,2]
[313041699,1706679041337,-500.0,0.00027397,2]
[313041700,1706679041347,-1814.14,0.00027397,2]
[313041701,1706679041357,-162.99345111,0.00027397,2]
[313041702,1706679041367,-500.0,0.00027397,2]
[313041703,1706679041376,-2223.96,0.00027397,2]
[313041704,1706679041386,-529.03,0.00027397,2]
[313041705,1706679041395,-3244.75,0.00027397,2]
[313041706,1706679041404,-532.86668844,0.00027397,2]
[313041707,1706679041413,-500.0,0.00027397,2]
[313041708,1706679041422,-522.1175499,0.00027397,2]
[313041709,1706679041431,-261.84475121,0.00027397,2]
[313041710,1706679041440,-500.0,0.00027397,2]
[313041711,1706679041449,-506.08385949,0.00027397,2]
[313041712,1706679041459,-500.0,0.00027397,2]
[313041713,1706679041468,-500.0,0.00027397,2]
[313041714,1706679041477,-500.0,0.00027397,2]
[313041715,1706679041487,-2593.71,0.00027397,2]
[313041716,1706679041498,-500.0,0.00027397,2]
[313041717,1706679041507,-878.6,0.00027397,2]
[313041718,1706679041516,-500.0,0.00027397,2]
[313041719,1706679041526,-618.93733372,0.00027397,2]
[313041720,1706679041535,-3219.18,0.00027397,2]
[313041721,1706679041544,-500.0,0.00027397,2]
[313041722,1706679041553,-4438.04,0.00027397,2]
[313041723,1706679041562,-500.0,0.00027397,2]
[313041724,1706679041571,-1307.78,0.00027397,2]
[313041725,1706679041580,-500.0,0.00027397,2]
[313041726,1706679041590,-7052.62,0.00027397,2]
[313041727,1706679041599,-500.0,0.00027397,2]
[313041728,1706679041608,-500.0,0.00027397,2]
[313041729,1706679041618,-1316.91,0.00027397,2]
[313041730,1706679041627,-500.0,0.00027397,2]
[313041731,1706679041637,-500.0,0.00027397,2]
[313041732,1706679041648,-500.0,0.00027397,2]
[313041733,1706679041658,-500.0,0.00027397,2]
[313041734,1706679041667,-545.33542556,0.00027397,2]
[313041735,1706679041676,-607.24712456,0.00027397,2]
[313041736,1706679041686,-534.31913491,0.00027397,2]
[313041737,1706679041695,-500.0,0.00027397,2]
[313041738,1706679041704,-500.0,0.00027397,2]
[313041739,1706679041713,-535.27,0.00027397,2]
[313041740,1706679041722,-3104.9,0.00027397,2]
[313041741,1706679041731,-500.0,0.00027397,2]
[313041742,1706679041740,-191.87165318,0.00027397,2]
[313041743,1706679041749,-500.0,0.00027397,2]
[313041744,1706679041757,-845.46,0.00027397,2]
[313041745,1706679041766,-500.0,0.00027397,2]
[313041746,1706679041775,-500.0,0.00027397,2]
[313041747,1706679041784,-920.18,0.00027397,2]
[313041748,1706679041793,-520.91315073,0.00027397,2]
[313041749,1706679041802,-500.0,0.00027397,2]
[313041750,1706679041811,-500.0,0.00027397,2]
[313041751,1706679041820,-526.74975323,0.00027397,2]
[313041752,1706679041829,-301.81018742,0.00027397,2]
[313041753,1706679041838,-500.0,0.00027397,2]
[313041754,1706679041848,-500.0,0.00027397,2]
[313041755,1706679041858,-500.0,0.00027397,2]
[313041756,1706679041867,-528.93,0.00027397,2]
[313041757,1706679041877,-925.80163,0.00027397,2]
[313041758,1706679041886,-925.80163,0.00027397,2]
[313041759,1706679041895,-500.0,0.00027397,2]
[313041760,1706679041904,-3793.11,0.00027397,2]
[313041761,1706679041913,-925.80163,0.00027397,2]
[313041762,1706679041922,-925.80163,0.00027397,2]
[313041763,1706679041931,-925.80163,0.00027397,2]
[313041764,1706679041940,-925.80163,0.00027397,2]
[313041765,1706679041949,-925.80163,0.00027397,2]
[313041766,1706679041959,-500.0,0.00027397,2]
[313041767,1706679041968,-925.80163,0.00027397,2]
[313041768,1706679041977,-925.80163,0.00027397,2]
[313041769,1706679041986,-925.80163,0.00027397,2]
[313041770,1706679041995,-925.80163,0.00027397,2]
[313041771,1706679042005,-925.80163,0.00027397,2]
[313041772,1706679042014,-925.80163,0.00027397,2]
[313041773,1706679042023,-925.801631,0.00027397,2]
[313041774,1706679042032,-500.0,0.00027397,2]
[313041775,1706679042041,-600.0,0.00027397,2]
[313041776,1706679042050,-500.0,0.00027397,2]
[313041777,1706679042060,-500.0,0.00027397,2]
[313041778,1706679042069,-486.53614602,0.00027397,2]
[313041779,1706679042078,-1895.41,0.00027397,2]
[313041780,1706679042087,-5505.3,0.00027397,2]
[313041781,1706679042096,-500.0,0.00027397,2]
[313041782,1706679042106,-1450.78,0.00027397,2]
[313041783,1706679042115,-500.0,0.00027397,2]
[313041784,1706679042124,-500.0,0.00027397,2]
[313041785,1706679042134,-500.0,0.00027397,2]
[313041786,1706679042143,-500.0,0.00027397,2]
[313041787,1706679042153,-15781.7,0.00027397,2]
[313041788,1706679042163,-1102.28,0.00027397,2]
[313041789,1706679042173,-500.0,0.00027397,2]
[313041790,1706679042182,-500.0,0.00027397,2]
[313041791,1706679042191,-31402.86,0.00027397,2]
[313041792,1706679042200,-154.36870151,0.00027397,2]
[313041793,1706679042209,-500.0,0.00027397,2]
[313041794,1706679042218,-500.0,0.00027397,2]
[313041795,1706679042228,-2221.76,0.00027397,2]
[313041796,1706679042237,-500.0,0.00027397,2]
[313041797,1706679042251,-640.5,0.00027397,2]
[313041798,1706679042260,-500.0,0.00027397,2]
[313041799,1706679042269,-1173.66,0.00027397,2]
[313041800,1706679042279,-500.0,0.00027397,2]
[313041801,1706679042289,-186.20703741,0.00027397,2]
[313041802,1706679042298,-515.55925059,0.00027397,2]
[313041803,1706679042308,-500.0,0.00027397,2]
[313041804,1706679042317,-500.0,0.00027397,2]
[313041805,1706679042327,-524.66394145,0.00027397,2]
[313041806,1706679042336,-500.0,0.00027397,2]
[313041807,1706679042345,-500.0,0.00027397,2]
[313041808,1706679042355,-526.20364581,0.00027397,2]
[313041809,1706679042364,-508.06856971,0.00027397,2]
[313041810,1706679042373,-500.0,0.00027397,2]
[313041811,1706679042382,-609.4752151,0.00027397,2]
[313041812,1706679042392,-1438.2,0.00027397,2]
[313041813,1706679042400,-500.0,0.00027397,2]
[313041815,1706679042409,-500.0,0.00027397,2]
[313041817,1706679042418,-13725.85,0.00027397,2]
[313041818,1706679042427,-500.0,0.00027397,2]
[313041819,1706679042436,-226.34165706,0.00027397,2]
[313041820,1706679042445,-500.0,0.00027397,2]
[313041821,1706679042455,-500.0,0.00027397,2]
[313041823,1706679042465,-1272.73,0.00027397,2]
[313041825,1706679042474,-500.0,0.00027397,2]
[313041827,1706679042484,-162.67719447,0.00027397,2]
[313041829,1706679042493,-500.0,0.00027397,2]
[313041830,1706679042502,-500.0,0.00027397,2]
[313041832,1706679042511,-500.0,0.00027397,2]
[313041835,1706679042520,-500.0,0.00027397,2]
[313041837,1706679042529,-500.0,0.00027397,2]
[313041838,1706679042538,-520.21219445,0.00027397,2]
[313041839,1706679042547,-2455.81,0.00027397,2]
[313041840,1706679042556,-500.0,0.00027397,2]
[313041841,1706679042564,-508.76429048,0.00027397,2]
[313041842,1706679042573,-500.0,0.00027397,2]
[313041843,1706679042582,-500.0,0.00027397,2]
[313041844,1706679042591,-500.0,0.00027397,2]
[313041845,1706679042600,-2151.76,0.00027397,2]
[313041846,1706679042609,-500.0,0.00027397,2]
[313041847,1706679042618,-49533.94,0.00027397,2]
[313041848,1706679042627,-604.06409721,0.00027397,2]
[313041849,1706679042636,-500.0,0.00027397,2]
[313041850,1706679042645,-500.0,0.00027397,2]
[313041852,1706679042654,-500.0,0.00027397,2]
[313041855,1706679042662,-510.41281854,0.00027397,2]
[313041858,1706679042671,-989.4,0.00027397,2]
[313041861,1706679042680,-206.15832724,0.00027397,2]
[313041863,1706679042688,-2407.66,0.00027397,2]
[313041865,1706679042697,-500.0,0.00027397,2]
[313041867,1706679042706,-6428.02,0.00027397,2]
[313041869,1706679042714,-318.97137983,0.00027397,2]
[313041870,1706679042723,-500.0,0.00027397,2]
[313041872,1706679042732,-500.0,0.00027397,2]
[313041874,1706679042740,-635.53841817,0.00027397,2]
[313041876,1706679042749,-7354.097909,0.00027397,2]
[313041878,1706679042757,-7354.097909,0.00027397,2]
[313041880,1706679042766,-7354.097909,0.00027397,2]
[313041883,1706679042843,-500.0,0.00027397,2]
[313041884,1706679042852,-7354.097909,0.00027397,2]
[313041885,1706679042860,-7354.097909,0.00027397,2]
[313041886,1706679042869,-7354.097909,0.00027397,2]
[313041887,1706679042878,-219.78349457,0.00027397,2]
[313041888,1706679042886,-7354.097909,0.00027397,2]
[313041889,1706679042895,-500.0,0.00027397,2]
[313041890,1706679042904,-500.0,0.00027397,2]
[313041891,1706679042913,-5456.77,0.00027397,2]
[313041892,1706679042922,-7354.097909,0.00027397,2]
[313041893,1706679042931,-7354.097909,0.00027397,2]
[313041894,1706679042940,-7354.097909,0.00027397,2]
[313041895,1706679042949,-500.0,0.00027397,2]
[313041896,1706679042959,-7354.097909,0.00027397,2]
[313041897,1706679042968,-7354.097909,0.00027397,2]
[313041898,1706679042977,-7354.097909,0.00027397,2]
[313041899,1706679042986,-500.0,0.00027397,2]
[313041900,1706679042995,-7354.097914,0.00027397,2]
[313041901,1706679043004,-2432.65,0.00027397,2]
[313041902,1706679043014,-500.0,0.00027397,2]
[313041903,1706679043024,-5136.87,0.00027397,2]
[313041904,1706679043033,-508.87380754,0.00027397,2]
[313041905,1706679043042,-500.0,0.00027397,2]
[313041906,1706679043052,-562.0,0.000274,2]
[313041907,1706679043061,-2995.40964099,0.00027414,2]
[313041908,1706679043070,-213.95783149,0.00027414,2]
[313041909,1706679043080,-340.41887109,0.00027414,2]
[313041910,1706679043089,-620.00095869,0.00027582,2]
[313041911,1706679043098,-500.0,0.00027669,2]
[313041912,1706679043107,-500.0,0.00027669,2]
[313041913,1706679043117,-878.61,0.00027669,2]
[313041914,1706679043125,-500.0,0.0002767,2]
[313041915,1706679043134,-500.0,0.0002767,2]
[313041917,1706679043143,-500.0,0.0002767,2]
[313041919,1706679043152,-500.0,0.0002767,2]
[313041920,1706679043162,-436.81367918,0.0002767,2]
[313041922,1706679043171,-878.61,0.0002767,2]
[313041924,1706679043180,-878.61,0.0002767,2]
[313041925,1706679043189,-878.61,0.0002767,2]
[313041926,1706679043198,-878.61,0.0002767,2]
[313041928,1706679043208,-878.61,0.0002767,2]
[313041929,1706679043217,-878.61,0.0002767,2]
[313041930,1706679043226,-878.61,0.0002767,2]
[313041932,1706679043236,-878.61,0.0002767,2]
[313041933,1706679043247,-878.61,0.0002767,2]
[313041934,1706679043256,-878.61,0.0002767,2]
[313041935,1706679043265,-878.61,0.0002767,2]
[313041936,1706679043274,-878.69417738,0.0002767,2]
[313041937,1706679043284,-531.21736991,0.00027671,2]
[313041938,1706679043293,-500.0,0.00027671,2]
[313041939,1706679043302,-500.0,0.00027671,2]
[313041940,1706679043312,-500.0,0.00027671,2]
[313041941,1706679043322,-500.0,0.00027671,2]
[313041942,1706679043330,-500.0,0.00027671,2]
[313041943,1706679043340,-500.0,0.00027671,2]
[313041944,1706679043349,-503.85043429,0.00027671,2]
[313041945,1706679043359,-500.0,0.00027671,2]
[313041946,1706679043368,-500.0,0.00027671,2]
[313041947,1706679043377,-511.03114257,0.00027671,2]
[313041948,1706679043387,-500.0,0.00027671,2]
[313041949,1706679043396,-1000.0,0.00027671,2]
[313041950,1706679043405,-500.0,0.00027671,2]
[313041951,1706679043415,-560.05,0.00027671,2]
[313041952,1706679043424,-500.0,0.00027671,2]
[313041953,1706679043433,-500.0,0.00027671,2]
[313041954,1706679043443,-500.0,0.00027671,2]
[313041955,1706679043452,-500.0,0.00027671,2]
[313041956,1706679043461,-500.0,0.00027671,2]
[313041957,1706679043470,-500.0,0.00027671,2]
[313041958,1706679043479,-500.0,0.00027671,2]
[313041960,1706679043488,-500.0,0.00027671,2]
[313041961,1706679043497,-500.0,0.00027671,2]
[313041963,1706679043506,-500.0,0.00027671,2]
[313041964,1706679043515,-500.0,0.00027671,2]
[313041965,1706679043525,-500.0,0.00027671,2]
[313041966,1706679043534,-500.0,0.00027671,2]
[313041967,1706679043543,-500.0,0.00027671,2]
[313041968,1706679043553,-500.16315261,0.00027671,2]
[313041969,1706679043563,-885.34,0.00027671,2]
[313041970,1706679043571,-500.0,0.00027671,2]
[313041971,1706679043581,-500.0,0.00027671,2]
[313041972,1706679043590,-500.0,0.00027671,2]
[313041973,1706679043599,-3472.22,0.00027671,2]
[313041974,1706679043608,-500.0,0.00027671,2]
[313041975,1706679043617,-500.0,0.00027671,2]
[313041976,1706679043626,-515.72640571,0.00027671,2]
[313041977,1706679043635,-500.0,0.00027671,2]
[313041978,1706679043652,-500.0,0.00027671,2]
[313041979,1706679043666,-500.0,0.00027671,2]
[313041980,1706679043676,-500.0,0.00027671,2]
[313041981,1706679043686,-500.0,0.00027671,2]
[313041982,1706679043695,-190.90635508,0.00027671,2]
[313041983,1706679043704,-500.0,0.00027671,2]
[313041984,1706679043714,-500.0,0.00027671,2]
[313041985,1706679043724,-500.0,0.00027671,2]
[313041986,1706679043734,-500.0,0.00027671,2]
[313041987,1706679043744,-500.0,0.00027671,2]
[313041988,1706679043753,-1000.0,0.00027671,2]
[313041989,1706679043763,-500.0,0.00027671,2]
[313041990,1706679043773,-500.0,0.00027671,2]
[313041991,1706679043782,-2184.41,0.00027671,2]
[313041992,1706679043792,-500.0,0.00027671,2]
[313041993,1706679043802,-500.0,0.00027671,2]
[313041994,1706679043811,-500.0,0.00027671,2]
[313041995,1706679043821,-1115.41,0.00027671,2]
[313041996,1706679043832,-501.3,0.00027671,2]
[313041997,1706679043842,-500.0,0.00027671,2]
[313041998,1706679043851,-500.0,0.00027671,2]
[313041999,1706679043861,-524.08,0.00027671,2]
[313042000,1706679043871,-500.0,0.00027671,2]
[313042001,1706679043882,-500.0,0.00027671,2]
[313042002,1706679043893,-500.0,0.00027671,2]
[313042003,1706679043903,-957.7,0.00027671,2]
[313042004,1706679043913,-500.0,0.00027671,2]
[313042005,1706679043923,-500.0,0.00027671,2]
[313042006,1706679043934,-500.0,0.00027671,2]
[313042007,1706679043944,-500.0,0.00027671,2]
[313042008,1706679043953,-500.0,0.00027671,2]
[313042009,1706679043965,-347.85204275,0.00027671,2]
[313042010,1706679043975,-500.0,0.00027671,2]
[313042011,1706679043984,-500.0,0.00027671,2]
[313042012,1706679043994,-500.0,0.00027671,2]
[313042013,1706679044004,-500.0,0.00027671,2]
[313042014,1706679044013,-610.81401891,0.00027671,2]
[313042015,1706679044023,-708.41,0.00027671,2]
[313042016,1706679044033,-500.0,0.00027671,2]
[313042017,1706679044043,-500.0,0.00027671,2]
[313042018,1706679044052,-500.0,0.00027671,2]
[313042019,1706679044062,-187.69311989,0.00027671,2]
[313042020,1706679044071,-500.0,0.00027671,2]
[313042021,1706679044081,-401.89506063,0.00027671,2]
[313042022,1706679044091,-500.0,0.00027671,2]
[313042023,1706679044101,-500.0,0.00027671,2]
[313042024,1706679044111,-316.92065111,0.00027671,2]
[313042025,1706679044121,-500.0,0.00027671,2]
[313042026,1706679044130,-500.0,0.00027671,2]
[313042027,1706679044140,-606.6,0.00027671,2]
[313042028,1706679044151,-500.0,0.00027671,2]
[313042029,1706679044160,-1469.84,0.00027671,2]
[313042030,1706679044171,-500.0,0.00027671,2]
[313042031,1706679044180,-500.0,0.00027671,2]
[313042032,1706679044189,-500.0,0.00027671,2]
[313042033,1706679044199,-500.0,0.00027671,2]
[313042034,1706679044209,-793.97,0.00027671,2]
[313042035,1706679044218,-500.0,0.00027671,2]
[313042036,1706679044228,-500.0,0.00027671,2]
[313042037,1706679044238,-500.0,0.00027671,2]
[313042038,1706679044250,-500.0,0.00027671,2]
[313042039,1706679044259,-500.0,0.00027671,2]
[313042040,1706679044269,-207.67499752,0.00027671,2]
[313042041,1706679044278,-500.0,0.00027671,2]
[313042042,1706679044287,-500.0,0.00027671,2]
[313042043,1706679044298,-500.0,0.00027671,2]
[313042044,1706679044307,-500.0,0.00027671,2]
[313042045,1706679044316,-988.17,0.00027671,2]
[313042046,1706679044327,-317.36443008,0.00027671,2]
[313042047,1706679044336,-500.0,0.00027671,2]
[313042048,1706679044346,-4896.25,0.00027671,2]
[313042049,1706679044355,-500.0,0.00027671,2]
[313042050,1706679044365,-2709.66,0.00027671,2]
[313042051,1706679044374,-500.0,0.00027671,2]
[313042052,1706679044383,-500.0,0.00027671,2]
[313042053,1706679044394,-500.0,0.00027671,2]
[313042054,1706679044403,-1814.14,0.00027671,2]
[313042055,1706679044413,-500.0,0.00027671,2]
[313042056,1706679044423,-2223.96,0.00027671,2]
[313042057,1706679044432,-529.03,0.00027671,2]
[313042058,1706679044531,-3244.75,0.00027671,2]
[313042059,1706679044540,-500.0,0.00027671,2]
[313042060,1706679044549,-500.0,0.00027671,2]
[313042061,1706679044558,-500.0,0.00027671,2]
[313042062,1706679044568,-568.35400767,0.00027671,2]
[313042063,1706679044577,-500.0,0.00027671,2]
[313042064,1706679044585,-1124.3650257,0.00027671,2]
[313042065,1706679045050,-266.01679298,0.0002089,2]
[313042066,1706679045060,-1469.3449743,0.00027671,2]
[313042067,1706679045070,-513.67339814,0.00027671,2]
[313042068,1706679045079,-878.6,0.00027671,2]
[313042069,1706679045089,-524.70637,0.00027671,2]
[313042070,1706679045099,-3219.18,0.00027671,2]
[313042071,1706679045108,-500.0,0.00027671,2]
[313042072,1706679045118,-4438.04,0.00027671,2]
[313042073,1706679045127,-500.0,0.00027671,2]
[313042074,1706679045137,-1307.78,0.00027671,2]
[313042075,1706679045146,-500.0,0.00027671,2]
[313042076,1706679045156,-4502.02348452,0.00027671,2]
[313042080,1706679046059,-2550.59651548,0.00027671,2]
[313042081,1706679046068,-500.0,0.00027671,2]
[313042082,1706679046078,-500.0,0.00027671,2]
[313042083,1706679046088,-1316.91,0.00027671,2]
[313042084,1706679046097,-515.98850987,0.00027671,2]
[313042085,1706679046106,-500.0,0.00027671,2]
[313042086,1706679046115,-500.0,0.00027671,2]
[313042087,1706679046124,-500.0,0.00027671,2]
[313042088,1706679046133,-144.68394669,0.00027671,2]
[313042089,1706679046146,-355.31605331,0.00027671,2]
[313042090,1706679046155,-118.13296557,0.00027671,2]
[313042224,1706680241401,-155.03255684,0.00020945,2]
[313042226,1706680241411,-159.01858397,0.00020946,2]
[313042228,1706680241420,-221.68066081,0.00020946,2]
[313042230,1706680241428,-155.03255684,0.00020947,2]
[313042232,1706680241438,-221.23468622,0.00020959,2]
[313042234,1706680241449,-261.546,0.00020959,2]
[313042237,1706680241469,-1042.62712709,0.00020959,2]
[313042313,1706680246231,-4864.1124067,0.00020959,2]
[313042319,1706680649509,184.098034,0.00019947,2]
[313042360,1706681432294,-155.03255684,0.00020885,2]
[313042361,1706681432303,-155.03255684,0.00020886,2]
[313042362,1706681432312,-221.68066081,0.00020886,2]
[313042363,1706681432321,-166.07172986,0.000209,2]
[313042364,1706681432330,-7971.79381667,0.00020911,2]
[313042365,1706681432340,-6796.36771145,0.00020912,2]
[313042366,1706681432349,-3809.14,0.00020949,3]
[313042367,1706681432358,-3174.28,0.00020949,3]
[313042368,1706681432367,-2645.24,0.00020949,3]
[313042369,1706681432376,-682.06374149,0.00020957,2]
[313042370,1706681432384,-1589.68284634,0.00020957,2]
[313042371,1706681432394,-1710.15254645,0.00020957,2]
[313042372,1706681432403,-176.47754897,0.00020957,2]
[313042373,1706681432413,-243.91921588,0.00020957,2]
[313042374,1706681432422,-163.36525475,0.00020957,2]
[313042375,1706681432431,-156.72065307,0.00020957,2]
[313042376,1706681432440,-156.69992293,0.00020957,2]
[313042377,1706681432449,-525.27501604,0.00020957,2]
[313042378,1706681432459,-561.21221054,0.00020957,2]
[313042379,1706681432468,-180.06935571,0.00020957,2]
[313042380,1706681432477,-500.0,0.00020958,2]
[313042381,1706681432486,-621.46488849,0.00020959,2]
[313042382,1706681432495,-21620.21394919,0.00020959,2]
[313042383,1706681432507,-463.7665836,0.00020959,2]
[313042398,1706681438394,-155.03255684,0.00020884,2]
[313042399,1706681438404,-2204.36,0.00020949,3]
[313042400,1706681438413,-246672.02116096,0.00020959,2]
[313042401,1706681438424,-1827.81474335,0.00021,2]
[313042402,1706681438433,-272.6456851,0.00021047,2]
[313042403,1706681438442,-472.4833423,0.00021048,2]
[313042404,1706681438452,-156.33989657,0.00021048,2]
[313042405,1706681438461,-33836.23702035,0.00021055,2]
[313042406,1706681438470,-534.66921395,0.00021055,2]
[313042407,1706681438479,-2082.30131162,0.00021055,2]
[313042408,1706681438488,-174.11081672,0.00021055,2]
[313042409,1706681438497,-155.49572129,0.00021055,2]
[313042410,1706681438507,-1202.09442314,0.00021055,2]
[313042411,1706681438516,-591.21263005,0.00021055,2]
[313042412,1706681438525,-909.38245873,0.00021055,2]
[313042413,1706681438534,-155.28453326,0.00021055,2]
[313042414,1706681438543,-529.09941661,0.00021055,2]
[313042415,1706681438553,-208.39220199,0.00021055,2]
[313042416,1706681438562,-524.3374507,0.00021055,2]
[313042417,1706681438571,-558.20108116,0.00021055,2]
[313042418,1706681438580,-161.19857963,0.00021055,2]
[313042419,1706681438589,-2878.81959013,0.00021055,2]
[313042420,1706681438598,-233.99326596,0.00021055,2]
[313042421,1706681438607,-226.10079499,0.00021055,2]
[313042422,1706681438616,-610.84917874,0.00021055,2]
[313042423,1706681438625,-2820.88383475,0.00021055,2]
[313042424,1706681438634,-4859.51165206,0.00021055,2]
[313042425,1706681438644,-155.7244453,0.00021055,2]
[313042426,1706681438653,-303.31030986,0.00021055,2]
[313042427,1706681438663,-286.04390425,0.00021055,2]
[313042428,1706681438674,-161.77885971,0.00021055,2]
[313042429,1706681438684,-1862.05883289,0.00021056,2]
[313042430,1706681438694,-166.666666,0.00021918,2]
[313042431,1706681438703,-310.01705101,0.00022,2]
[313042432,1706681438712,-2036.85139165,0.00022,2]
[313042433,1706681438722,-426.52191671,0.00022,2]
[313042434,1706681438732,-3975.13505251,0.00022,2]
[313042435,1706681438741,-166.666666,0.00022773,2]
[313042436,1706681438750,-5499.91005355,0.00023,2]
[313042437,1706681438759,-1327.61014966,0.00023,2]
[313042438,1706681438768,-200.0,0.00023002,7]
[313042439,1706681438778,-166.666666,0.00023627,2]
[313042440,1706681438787,-166.666666,0.00024482,2]
[313042441,1706681438796,-151.0,0.00024738,2]
[313042442,1706681438805,-635.41680348,0.00025,2]
[313042443,1706681438814,-155.44701588,0.00025,2]
[313042444,1706681438824,-682.42721753,0.00025,2]
[313042445,1706681438833,-155.27487438,0.00025,2]
[313042446,1706681438842,-280.0,0.00025302,7]
[313042447,1706681438851,-620.00095869,0.0002673,2]